[Event "Ceske Budejovice Open-A 2019"]
[Site "Ceske Budejovice"]
[Date "2019.07.03"]
[Round "5.11"]
[White "Kanka, Matej"]
[Black "Muron, Miroslav"]
[Result "0-1"]
[ECO "A03"]
[WhiteElo "1858"]
[BlackElo "2215"]
[Annotator "NA"]
[PlyCount "82"]
[EventDate "2019.07.02"]
[EventCountry "CZE"]
[SourceTitle "playchess.com"]
[Source "ChessBase"]
[SourceQuality "1"]
[TimeControl "5400+30"]

1. f4 {[%emt 0:00:00]} d5 {[%emt 0:00:00]} 2. Nf3 {[%emt 0:00:00]} c5 {[%emt 0:00:05]} 3. g3 {[%emt 0:00:00]} Nc6 {[%emt 0:00:16]} 4. Bg2 {[%emt 0:00:00]} Nf6 {[%emt 0:00:37]} 5. b3 {[%emt 0:00:26]} g6 {[%emt 0:04:05]} 6. Bb2 {[%emt 0:00:28]} Bg7 {[%emt 0:02:13]} 7. e3 {[%emt 0:00:54]} O-O {[%emt 0:00:13]} 8. O-O {[%emt 0:00:10]} b5 {[%emt 0:09:05]} 9. d3 {[%emt 0:01:34]} Qb6 {[%emt 0:06:56]} 10. Re1 {[%emt 0:02:20]} Rd8 {[%emt 0:01:43]} 11. Qe2 {[%emt 0:05:29]} a5 {[%emt 0:02:02]} 12. Nbd2 {[%emt 0:04:30]} Ra7 {[%emt 0:09:56]} 13. Ne5 {[%emt 0:02:14]} Nxe5 {[%emt 0:19:39]} 14. fxe5 {[%emt 0:01:46]} Ng4 {[%emt 0:02:22]} 15. d4 {[%emt 0:01:17]} c4 {[%emt 0:00:29]} 16. h3 {[%emt 0:07:55]} Nh6 {[%emt 0:00:13]} 17. e4 {[%emt 0:00:50]} Bxe5 {[%emt 0:06:06]} 18. Qf2 {[%emt 0:02:11]} Bg7 {[%emt 0:00:29]} 19. e5 {[%emt 0:01:36]} c3 {[%emt 0:03:38]} 20. Bxc3 {[%emt 0:00:16]} Rc7 {[%emt 0:00:02]} 21. Nb1 {[%emt 0:06:58]} b4 {[%emt 0:05:37]} 22. Bb2 {[%emt 0:02:46]} Bf5 {[%emt 0:01:20]} 23. Re2 {[%emt 0:05:11]} Rdc8 {[%emt 0:04:26]} 24. Bxd5 {[%emt 0:05:43]} Rxc2 {[%emt 0:00:11]} 25. Bc4 {[%emt 0:02:15]} Rxe2 {[%emt 0:00:24]} 26. Qxe2 {[%emt 0:00:08]} Bxh3 {[%emt 0:01:53]} 27. Kh2 {[%emt 0:02:22]} Bf5 {[%emt 0:00:37]} 28. Nd2 {[%emt 0:00:47]} Ng4+ {[%emt 0:00:36]} 29. Kg2 {[%emt 0:00:15]} e6 {[%emt 0:02:36]} 30. Re1 {[%emt 0:08:48]} Bh6 {[%emt 0:00:42]} 31. Nf1 {[%emt 0:07:36]} Bg5 {[%emt 0:03:26]} 32. Qf3 {[%emt 0:03:10]} h5 {[%emt 0:00:36]} 33. Rd1 {[%emt 0:05:30]} Rd8 {[%emt 0:01:39]} 34. Ra1 {[%emt 0:04:39]} Rxd4 {[%emt 0:03:33]} 35. Bxd4 {[%emt 0:06:24]} Qxd4 {[%emt 0:00:02]} 36. Rd1 {[%emt 0:04:50]} Qxe5 {[%emt 0:01:49]} 37. Bd3 {[%emt 0:00:35]} Qb2+ {[%emt 0:00:46]} 38. Qe2 {[%emt 0:00:26]} Be4+ {[%emt 0:03:17]} 39. Kg1 {[%emt 0:00:07]} Qd4+ {[%emt 0:00:13]} 40. Ne3 {[%emt 0:01:17]} Bxe3+ {[%emt 0:00:16]} 41. Kf1 {[%emt 0:00:10]} Qf6+ {[%emt 0:00:18]} 0-1

[Event "Ceske Budejovice Open-A 2019"]
[Site "Ceske Budejovice"]
[Date "2019.07.03"]
[Round "5.12"]
[White "Zacek, Petr"]
[Black "Lys, Josef"]
[Result "0-1"]
[ECO "A49"]
[WhiteElo "1883"]
[BlackElo "2149"]
[Annotator "NA"]
[PlyCount "94"]
[EventDate "2019.07.02"]
[EventCountry "CZE"]
[SourceTitle "playchess.com"]
[Source "ChessBase"]
[SourceQuality "1"]
[TimeControl "5400+30"]

1. d4 {[%emt 0:00:00]} Nf6 {[%emt 0:00:00]} 2. Nf3 {[%emt 0:00:00]} g6 {[%emt 0:00:59]} 3. g3 {[%emt 0:00:00]} b6 {[%emt 0:00:19]} 4. Bg2 {[%emt 0:00:09]} Bb7 {[%emt 0:00:12]} 5. c4 {[%emt 0:00:12]} Bg7 {[%emt 0:00:14]} 6. Nc3 {[%emt 0:00:12]} Ne4 {[%emt 0:00:09]} 7. Nxe4 {[%emt 0:00:44]} Bxe4 {[%emt 0:00:12]} 8. O-O {[%emt 0:00:06]} O-O {[%emt 0:00:52]} 9. Be3 {[%emt 0:00:54]} c5 {[%emt 0:01:55]} 10. Ng5 {[%emt 0:03:15]} Bxg2 {[%emt 0:00:11]} 11. Kxg2 {[%emt 0:00:07]} d6 {[%emt 0:05:20]} 12. Qd2 {[%emt 0:04:10]} Qc7 {[%emt 0:03:15]} 13. Rac1 {[%emt 0:00:35]} Nc6 {[%emt 0:04:37]} 14. Nf3 {[%emt 0:00:58]} Rfb8 {[%emt 0:04:54]} 15. d5 {[%emt 0:08:10]} Nd8 {[%emt 0:00:11]} 16. Bh6 {[%emt 0:00:18]} Bh8 {[%emt 0:03:07]} 17. h4 {[%emt 0:02:49]} b5 {[%emt 0:00:26]} 18. cxb5 {[%emt 0:00:50]} Rxb5 {[%emt 0:00:11]} 19. b3 {[%emt 0:00:05]} Qd7 {[%emt 0:02:55]} 20. h5 {[%emt 0:01:26]} Rb4 {[%emt 0:01:31]} 21. hxg6 {[%emt 0:00:26]} hxg6 {[%emt 0:00:23]} 22. Qd3 {[%emt 0:01:27]} Qg4 {[%emt 0:04:24]} 23. Rc4 {[%emt 0:01:59]} Rxc4 {[%emt 0:00:28]} 24. bxc4 {[%emt 0:00:01]} Rb8 {[%emt 0:01:26]} 25. Rb1 {[%emt 0:04:20]} Rxb1 {[%emt 0:41:02]} 26. Qxb1 {[%emt 0:00:09]} Qd7 {[%emt 0:01:47]} 27. Qb8 {[%emt 0:02:18]} Bf6 {[%emt 0:00:41]} 28. Bf4 {[%emt 0:05:10]} Kg7 {[%emt 0:04:07]} 29. Ng5 {[%emt 0:01:46]} Bxg5 {[%emt 0:01:06]} 30. Bxg5 {[%emt 0:00:03]} f6 {[%emt 0:00:10]} 31. Bd2 {[%emt 0:01:42]} Nf7 {[%emt 0:00:14]} 32. f4 {[%emt 0:01:27]} Nh6 {[%emt 0:05:47]} 33. Qb3 {[%emt 0:01:47]} Qf5 {[%emt 0:02:08]} 34. Qd3 {[%emt 0:01:55]} Qh5 {[%emt 0:00:24]} 35. Qe4 {[%emt 0:02:30]} Kf8 {[%emt 0:01:23]} 36. Kf1 {[%emt 0:08:26]} Nf5 {[%emt 0:01:50]} 37. Qf3 {[%emt 0:04:34]} Qxf3+ {[%emt 0:00:41]} 38. exf3 {[%emt 0:00:06]} Nxg3+ {[%emt 0:00:09]} 39. Kf2 {[%emt 0:00:11]} Nf5 {[%emt 0:00:10]} 40. a4 {[%emt 0:00:22]} a6 {[%emt 0:02:42]} 41. Bc3 {[%emt 0:00:17]} Kg7 {[%emt 0:00:31]} 42. Ke2 {[%emt 0:03:24]} Kh6 {[%emt 0:00:24]} 43. Kd3 {[%emt 0:00:27]} Kh5 {[%emt 0:05:50]} 44. Ke4 {[%emt 0:00:12]} Kh4 {[%emt 0:00:23]} 45. Ba5 {[%emt 0:00:45]} Kg3 {[%emt 0:00:50]} 46. Bd8 {[%emt 0:00:11]} Kf2 {[%emt 0:00:28]} 47. Ba5 {[%emt 0:00:12]} Ke2 {[%emt 0:01:26]} 0-1

[Event "Ceske Budejovice Open-A 2019"]
[Site "Ceske Budejovice"]
[Date "2019.07.03"]
[Round "5.13"]
[White "Mulenko, Alexander"]
[Black "Malinovsky, Petr"]
[Result "1/2-1/2"]
[ECO "A13"]
[WhiteElo "2055"]
[BlackElo "2058"]
[Annotator "NA"]
[PlyCount "44"]
[EventDate "2019.07.02"]
[EventCountry "CZE"]
[SourceTitle "playchess.com"]
[Source "ChessBase"]
[SourceQuality "1"]
[TimeControl "5400+30"]

1. Nf3 {[%emt 0:00:00]} d5 {[%emt 0:00:00]} 2. c4 {[%emt 0:00:00]} e6 {[%emt 0:00:00]} 3. g3 {[%emt 0:00:00]} Nf6 {[%emt 0:00:01]} 4. Bg2 {[%emt 0:00:04]} Be7 {[%emt 0:00:10]} 5. d4 {[%emt 0:00:26]} O-O {[%emt 0:00:37]} 6. O-O {[%emt 0:00:25]} c6 {[%emt 0:00:17]} 7. Qc2 {[%emt 0:00:45]} b6 {[%emt 0:00:20]} 8. Nbd2 {[%emt 0:00:15]} Bb7 {[%emt 0:00:26]} 9. Rd1 {[%emt 0:00:23]} Na6 {[%emt 0:02:25]} 10. e4 {[%emt 0:02:23]} c5 {[%emt 0:01:30]} 11. exd5 {[%emt 0:05:59]} exd5 {[%emt 0:00:33]} 12. dxc5 {[%emt 0:02:03]} Nb4 {[%emt 0:09:38]} 13. Qb3 {[%emt 0:02:03]} Bxc5 {[%emt 0:01:00]} 14. a3 {[%emt 0:01:29]} Na6 {[%emt 0:02:42]} 15. cxd5 {[%emt 0:03:22]} Bxd5 {[%emt 0:02:32]} 16. Qa4 {[%emt 0:02:02]} Qc8 {[%emt 0:02:56]} 17. Nf1 {[%emt 0:12:53]} Qb7 {[%emt 0:15:42]} 18. Nh4 {[%emt 0:08:00]} Bxg2 {[%emt 0:03:07]} 19. Nxg2 {[%emt 0:00:21]} Qf3 {[%emt 0:05:38]} 20. Be3 {[%emt 0:01:15]} Bxe3 {[%emt 0:00:33]} 21. Nfxe3 {[%emt 0:01:00]} Nc5 {[%emt 0:00:48]} 22. Qf4 {[%emt 0:01:10]} Qxf4 {[%emt 0:02:26]} 1/2-1/2

[Event "Ceske Budejovice Open-A 2019"]
[Site "Ceske Budejovice"]
[Date "2019.07.03"]
[Round "5.14"]
[White "Nagy, Ladislav"]
[Black "Tajovsky, Matej"]
[Result "1/2-1/2"]
[ECO "B24"]
[WhiteElo "2061"]
[BlackElo "1779"]
[Annotator "NA"]
[PlyCount "97"]
[EventDate "2019.07.02"]
[EventCountry "CZE"]
[SourceTitle "playchess.com"]
[Source "ChessBase"]
[SourceQuality "1"]
[TimeControl "5400+30"]

1. e4 c5 2. Nc3 Nc6 3. g3 g6 4. Bg2 Bg7 5. d3 e6 6. f4 Nh6 7. Nge2 O-O 8. O-O d6 9. h3 f5 10. Be3 Nd4 11. Qd2 Bd7 12. Nd1 Bc6 13. c3 Nxe2+ 14. Qxe2 Qe7 15. Bf2 Rab8 16. Rc1 b5 17. Re1 fxe4 18. Bxe4 Bxe4 19. Qxe4 Rfe8 20. Ne3 b4 21. cxb4 Rxb4 22. Nd5 exd5 23. Qxe7 Rxe7 24. Rxe7 Nf5 25. Rxa7 Rxb2 26. a4 Bd4 27. Bxd4 Nxd4 28. Ra1 c4 29. dxc4 dxc4 30. Kf1 c3 31. Rc7 Ne2 32. Kf2 c2 33. Ke3 Rb1 34. Rxc2 Rxa1 35. Kxe2 Rxa4 36. Kf3 h5 37. Rc3 Kf7 38. g4 hxg4+ 39. Kxg4 Kf6 40. Rd3 Ra6 41. h4 Rb6 42. Rd5 Rc6 43. h5 gxh5+ 44. Rxh5 Kf7 45. Rh6 Kg7 46. Re6 Kf7 47. f5 Rc1 48. Rxd6 Rg1+ 49. Kf4 1/2-1/2

[Event "Ceske Budejovice Open-A 2019"]
[Site "Ceske Budejovice"]
[Date "2019.07.03"]
[Round "5.15"]
[White "Brom, Jiri"]
[Black "Baloun, Tomas"]
[Result "1/2-1/2"]
[ECO "E94"]
[WhiteElo "2018"]
[BlackElo "1887"]
[Annotator "NA"]
[PlyCount "70"]
[EventDate "2019.07.02"]
[EventCountry "CZE"]
[SourceTitle "playchess.com"]
[Source "ChessBase"]
[SourceQuality "1"]
[TimeControl "5400+30"]

1. d4 {[%emt 0:00:00]} Nf6 {[%emt 0:00:48]} 2. Nf3 {[%emt 0:00:00]} g6 {[%emt 0:00:06]} 3. c4 {[%emt 0:00:06]} Bg7 {[%emt 0:00:06]} 4. Nc3 {[%emt 0:00:10]} O-O {[%emt 0:00:32]} 5. e4 {[%emt 0:00:35]} d6 {[%emt 0:00:23]} 6. Be2 {[%emt 0:00:05]} e5 {[%emt 0:03:16]} 7. O-O {[%emt 0:02:17]} Nh5 {[%emt 0:04:39]} 8. h3 {[%emt 0:15:28]} Nc6 {[%emt 0:05:59]} 9. Be3 {[%emt 0:06:04]} Nf4 {[%emt 0:10:56]} 10. Re1 {[%emt 0:06:20]} Nxd4 {[%emt 0:15:54]} 11. Nxd4 {[%emt 0:01:37]} exd4 {[%emt 0:00:22]} 12. Bxd4 {[%emt 0:00:20]} Bxd4 {[%emt 0:01:27]} 13. Qxd4 {[%emt 0:00:09]} Qg5 {[%emt 0:00:16]} 14. g3 {[%emt 0:05:37]} Nxh3+ {[%emt 0:08:49]} 15. Kf1 {[%emt 0:11:24]} Nf4 {[%emt 0:04:41]} 16. Bf3 {[%emt 0:00:35]} Bh3+ {[%emt 0:04:27]} 17. Kg1 {[%emt 0:00:59]} Ne6 {[%emt 0:07:17]} 18. Qe3 {[%emt 0:03:37]} Qxe3 {[%emt 0:03:03]} 19. Rxe3 {[%emt 0:00:18]} Nd4 {[%emt 0:01:07]} 20. Rd3 {[%emt 0:01:27]} Nxf3+ {[%emt 0:05:36]} 21. Rxf3 {[%emt 0:01:58]} Be6 {[%emt 0:00:06]} 22. b3 {[%emt 0:01:44]} a6 {[%emt 0:00:05]} 23. Re3 {[%emt 0:01:04]} h5 {[%emt 0:00:47]} 24. Rae1 {[%emt 0:01:40]} Rad8 {[%emt 0:00:56]} 25. Nd5 {[%emt 0:06:08]} c6 {[%emt 0:02:06]} 26. Nc3 {[%emt 0:01:57]} Kg7 {[%emt 0:01:01]} 27. Rd1 {[%emt 0:01:45]} h4 {[%emt 0:01:14]} 28. gxh4 {[%emt 0:02:17]} Rh8 {[%emt 0:00:08]} 29. Red3 {[%emt 0:03:11]} Rxh4 {[%emt 0:00:08]} 30. Rxd6 {[%emt 0:01:19]} Rdh8 {[%emt 0:00:18]} 31. f3 Rh2 32. R1d2 R2h4 33. Rd1 Rh1+ 34. Kf2 R8h2+ 35. Ke3 Rf1 1/2-1/2

[Event "Ceske Budejovice Open-A 2019"]
[Site "Ceske Budejovice"]
[Date "2019.07.03"]
[Round "5.16"]
[White "Barak, David"]
[Black "Szotkowski, David"]
[Result "1-0"]
[ECO "A56"]
[WhiteElo "2015"]
[BlackElo "1869"]
[Annotator "NA"]
[PlyCount "105"]
[EventDate "2019.07.02"]
[EventCountry "CZE"]
[SourceTitle "playchess.com"]
[Source "ChessBase"]
[SourceQuality "1"]
[TimeControl "5400+30"]

1. d4 {[%emt 0:00:00]} Nf6 {[%emt 0:03:02]} 2. c4 {[%emt 0:00:00]} c5 {[%emt 0:00:17]} 3. d5 {[%emt 0:00:00]} e5 {[%emt 0:00:09]} 4. Nc3 {[%emt 0:00:17]} d6 {[%emt 0:00:14]} 5. e4 {[%emt 0:00:37]} g6 {[%emt 0:00:45]} 6. Be2 {[%emt 0:02:14]} Bg7 {[%emt 0:00:41]} 7. Nf3 {[%emt 0:09:01]} O-O {[%emt 0:00:53]} 8. O-O {[%emt 0:04:48]} Ne8 {[%emt 0:05:53]} 9. Bg5 {[%emt 0:13:43]} f6 {[%emt 0:02:59]} 10. Bh4 {[%emt 0:01:02]} Bg4 {[%emt 0:06:20]} 11. Nd2 {[%emt 0:05:57]} Bxe2 {[%emt 0:01:18]} 12. Qxe2 {[%emt 0:00:18]} Qc8 {[%emt 0:00:47]} 13. Rab1 {[%emt 0:04:30]} f5 {[%emt 0:07:45]} 14. a3 {[%emt 0:07:49]} h6 {[%emt 0:10:56]} 15. f3 {[%emt 0:08:01]} g5 {[%emt 0:13:44]} 16. Bf2 {[%emt 0:02:39]} f4 {[%emt 0:00:16]} 17. b4 {[%emt 0:02:22]} Nd7 {[%emt 0:01:26]} 18. Nb3 {[%emt 0:04:26]} b6 {[%emt 0:06:46]} 19. Rfd1 {[%emt 0:05:33]} cxb4 {[%emt 0:10:27]} 20. axb4 {[%emt 0:00:13]} Rf7 {[%emt 0:00:50]} 21. Rbc1 {[%emt 0:06:08]} Bf8 {[%emt 0:00:54]} 22. Nb5 {[%emt 0:04:38]} a6 {[%emt 0:03:57]} 23. Nc3 {[%emt 0:01:24]} Rb8 {[%emt 0:02:20]} 24. Na4 {[%emt 0:01:48]} Rb7 {[%emt 0:03:32]} 25. Rc3 {[%emt 0:01:07]} Qb8 {[%emt 0:01:41]} 26. Rdc1 {[%emt 0:01:19]} Kh7 {[%emt 0:00:25]} 27. Qa2 {[%emt 0:02:21]} Nc7 {[%emt 0:05:20]} 28. Nb2 {[%emt 0:02:15]} Ne8 {[%emt 0:00:23]} 29. Nd3 {[%emt 0:03:46]} Nc7 {[%emt 0:00:40]} 30. Qc2 {[%emt 0:01:14]} Kg6 {[%emt 0:01:03]} 31. Ra1 {[%emt 0:01:09]} Kh7 {[%emt 0:00:40]} 32. Qc1 {[%emt 0:01:07]} Kg7 {[%emt 0:00:43]} 33. Rc2 {[%emt 0:00:44]} Kh7 {[%emt 0:00:21]} 34. Qa3 {[%emt 0:01:47]} Kg7 {[%emt 0:00:45]} 35. Rac1 {[%emt 0:00:15]} Kh7 {[%emt 0:00:21]} 36. Qa1 {[%emt 0:00:12]} Kg8 {[%emt 0:00:45]} 37. h3 {[%emt 0:00:48]} Kh7 {[%emt 0:00:12]} 38. Kh2 {[%emt 0:01:13]} Kg8 {[%emt 0:00:11]} 39. c5 {[%emt 0:00:53]} bxc5 {[%emt 0:03:36]} 40. Na5 {[%emt 0:00:18]} Rb5 {[%emt 0:01:14]} 41. bxc5 {[%emt 0:00:00]} dxc5 {[%emt 0:00:00]} 42. Nxc5 {[%emt 0:00:00]} Bxc5 {[%emt 0:00:00]} 43. Bxc5 {[%emt 0:00:00]} Nxc5 {[%emt 0:00:00]} 44. Rxc5 {[%emt 0:00:00]} Rxc5 {[%emt 0:00:00]} 45. Rxc5 {[%emt 0:00:00]} Nb5 {[%emt 0:00:00]} 46. Nc6 {[%emt 0:00:00]} Qb6 {[%emt 0:00:00]} 47. Rc4 {[%emt 0:00:00]} Nd6 {[%emt 0:00:00]} 48. Ra4 {[%emt 0:00:00]} Qf2 {[%emt 0:00:00]} 49. Nxe5 {[%emt 0:02:32]} Rc7 {[%emt 0:00:00]} 50. Nc6 {[%emt 0:01:19]} Rb7 {[%emt 0:00:00]} 51. Ra2 {[%emt 0:01:01]} Qc5 {[%emt 0:00:00]} 52. Rxa6 {[%emt 0:00:45]} Qf2 {[%emt 0:00:00]} 53. Ra8+ 1-0

[Event "Ceske Budejovice Open-A 2019"]
[Site "Ceske Budejovice"]
[Date "2019.07.03"]
[Round "5.17"]
[White "Rolinek, Dominik"]
[Black "Pavlicek, Petr"]
[Result "1/2-1/2"]
[ECO "D00"]
[WhiteElo "2004"]
[BlackElo "1828"]
[Annotator "NA"]
[PlyCount "87"]
[EventDate "2019.07.02"]
[EventCountry "CZE"]
[SourceTitle "playchess.com"]
[Source "ChessBase"]
[SourceQuality "1"]
[TimeControl "5400+30"]

1. d4 {[%emt 0:00:00]} d5 {[%emt 0:00:00]} 2. Bf4 {[%emt 0:00:00]} e6 {[%emt 0:00:08]} 3. Nf3 {[%emt 0:00:00]} Nf6 {[%emt 0:00:07]} 4. e3 {[%emt 0:00:00]} Be7 {[%emt 0:00:20]} 5. h3 {[%emt 0:00:04]} O-O {[%emt 0:00:15]} 6. Bd3 {[%emt 0:00:04]} b6 {[%emt 0:00:25]} 7. Nbd2 {[%emt 0:00:10]} Bb7 {[%emt 0:00:13]} 8. O-O {[%emt 0:00:10]} Nbd7 {[%emt 0:00:21]} 9. Qe2 {[%emt 0:00:06]} c5 {[%emt 0:01:25]} 10. c3 {[%emt 0:00:16]} Ne4 {[%emt 0:01:11]} 11. Ne5 {[%emt 0:00:31]} f6 {[%emt 0:03:43]} 12. Nxd7 {[%emt 0:01:00]} Qxd7 {[%emt 0:00:12]} 13. Rad1 {[%emt 0:02:21]} Nxd2 {[%emt 0:02:33]} 14. Rxd2 {[%emt 0:00:13]} Bd6 {[%emt 0:18:16]} 15. Bxd6 {[%emt 0:00:17]} Qxd6 {[%emt 0:00:08]} 16. e4 {[%emt 0:03:24]} cxd4 {[%emt 0:01:55]} 17. cxd4 {[%emt 0:00:08]} dxe4 {[%emt 0:02:34]} 18. Bxe4 {[%emt 0:00:11]} Bxe4 {[%emt 0:00:09]} 19. Qxe4 {[%emt 0:00:05]} Qd5 {[%emt 0:00:45]} 20. Re1 {[%emt 0:06:44]} Qxe4 {[%emt 0:00:52]} 21. Rxe4 {[%emt 0:00:06]} Rfe8 {[%emt 0:02:07]} 22. Rde2 {[%emt 0:00:46]} Kf7 {[%emt 0:00:40]} 23. Kf1 {[%emt 0:00:44]} Rad8 {[%emt 0:01:31]} 24. Rd2 {[%emt 0:04:08]} Rd5 {[%emt 0:00:23]} 25. g4 {[%emt 0:03:46]} Red8 {[%emt 0:02:33]} 26. Ke2 {[%emt 0:00:34]} e5 {[%emt 0:02:28]} 27. Ke3 {[%emt 0:00:21]} g6 {[%emt 0:08:01]} 28. f4 {[%emt 0:00:34]} Rxd4 {[%emt 0:01:42]} 29. Rexd4 {[%emt 0:00:16]} exd4+ {[%emt 0:00:18]} 30. Rxd4 {[%emt 0:00:06]} Rxd4 {[%emt 0:00:22]} 31. Kxd4 {[%emt 0:00:06]} Ke6 {[%emt 0:00:08]} 32. Ke4 {[%emt 0:10:59]} f5+ {[%emt 0:01:03]} 33. gxf5+ {[%emt 0:00:16]} gxf5+ {[%emt 0:00:07]} 34. Kd4 {[%emt 0:00:11]} a6 {[%emt 0:02:15]} 35. h4 {[%emt 0:11:56]} Kd6 {[%emt 0:03:55]} 36. h5 {[%emt 0:00:16]} h6 {[%emt 0:00:36]} 37. a4 {[%emt 0:02:31]} a5 {[%emt 0:04:14]} 38. Kc4 {[%emt 0:01:16]} Kc6 {[%emt 0:02:09]} 39. b3 {[%emt 0:06:02]} Kd6 {[%emt 0:00:40]} 40. Kb5 {[%emt 0:01:26]} Kc7 {[%emt 0:01:04]} 41. b4 {[%emt 0:00:50]} axb4 {[%emt 0:00:15]} 42. Kxb4 {[%emt 0:00:07]} Kd6 {[%emt 0:00:36]} 43. Kb5 {[%emt 0:03:32]} Kc7 {[%emt 0:00:10]} 44. Kc4 {[%emt 0:01:00]} 1/2-1/2

[Event "Ceske Budejovice Open-A 2019"]
[Site "Ceske Budejovice"]
[Date "2019.07.03"]
[Round "5.18"]
[White "Stehlik, Jiri"]
[Black "Rolinkova, Lucie"]
[Result "1/2-1/2"]
[ECO "D02"]
[WhiteElo "1930"]
[BlackElo "1703"]
[Annotator "NA"]
[PlyCount "71"]
[EventDate "2019.07.02"]
[EventCountry "CZE"]
[SourceTitle "playchess.com"]
[Source "ChessBase"]
[SourceQuality "1"]
[TimeControl "5400+30"]

1. d4 {[%emt 0:48:05]} d5 {[%emt 0:01:26]} 2. Nf3 {[%emt 0:00:51]} Nc6 {[%emt 0:00:24]} 3. Bf4 {[%emt 0:00:06]} Bg4 {[%emt 0:00:51]} 4. Nbd2 {[%emt 0:00:09]} e6 {[%emt 0:00:47]} 5. e3 {[%emt 0:00:18]} Bd6 {[%emt 0:01:41]} 6. Bxd6 {[%emt 0:00:27]} cxd6 {[%emt 0:00:48]} 7. Be2 {[%emt 0:00:22]} Nf6 {[%emt 0:02:47]} 8. O-O {[%emt 0:00:28]} e5 {[%emt 0:01:06]} 9. h3 {[%emt 0:01:30]} Bh5 {[%emt 0:05:23]} 10. c3 {[%emt 0:01:09]} Qe7 {[%emt 0:02:33]} 11. Re1 {[%emt 0:00:41]} h6 {[%emt 0:00:54]} 12. b4 {[%emt 0:03:14]} Rg8 {[%emt 0:07:15]} 13. Nh2 {[%emt 0:02:54]} Bxe2 {[%emt 0:01:31]} 14. Qxe2 {[%emt 0:00:16]} g5 {[%emt 0:00:59]} 15. a4 {[%emt 0:03:22]} h5 {[%emt 0:03:01]} 16. g3 {[%emt 0:01:04]} Nd7 {[%emt 0:02:10]} 17. b5 {[%emt 0:04:58]} Na5 {[%emt 0:07:59]} 18. c4 {[%emt 0:05:14]} Qe6 {[%emt 0:05:12]} 19. Rac1 {[%emt 0:04:14]} Qxh3 {[%emt 0:08:09]} 20. cxd5 {[%emt 0:00:56]} Nf6 {[%emt 0:20:59]} 21. dxe5 {[%emt 0:01:55]} Ng4 {[%emt 0:07:36]} 22. Nxg4 {[%emt 0:05:13]} hxg4 {[%emt 0:00:14]} 23. Qf1 {[%emt 0:00:42]} Qh6 {[%emt 0:08:38]} 24. exd6 {[%emt 0:02:37]} Qxd6 {[%emt 0:00:36]} 25. Nc4 {[%emt 0:00:44]} Nxc4 {[%emt 0:01:28]} 26. Qxc4 {[%emt 0:00:07]} f5 {[%emt 0:01:35]} 27. Qc5 {[%emt 0:04:03]} Kd7 {[%emt 0:01:46]} 28. Qd4 {[%emt 0:02:02]} a6 {[%emt 0:02:06]} 29. b6 {[%emt 0:01:45]} Rac8 {[%emt 0:00:54]} 30. a5 {[%emt 0:01:16]} Qa3 {[%emt 0:01:25]} 31. Rxc8 {[%emt 0:00:44]} Rxc8 {[%emt 0:00:14]} 32. Qg7+ {[%emt 0:00:40]} Qe7 {[%emt 0:00:02]} 33. Qd4 {[%emt 0:00:39]} Qe4 {[%emt 0:00:38]} 34. Qg7+ {[%emt 0:00:31]} Qe7 {[%emt 0:00:02]} 35. Qd4 {[%emt 0:00:18]} Qe4 {[%emt 0:00:09]} 36. Qg7+ {[%emt 0:00:25]} 1/2-1/2

[Event "Ceske Budejovice Open-A 2019"]
[Site "Ceske Budejovice"]
[Date "2019.07.03"]
[Round "5.19"]
[White "Vahala, Tomas"]
[Black "Kaspar, Jonas"]
[Result "1-0"]
[ECO "E71"]
[WhiteElo "1774"]
[BlackElo "1890"]
[Annotator "NA"]
[PlyCount "137"]
[EventDate "2019.07.02"]
[EventCountry "CZE"]
[SourceTitle "playchess.com"]
[Source "ChessBase"]
[SourceQuality "1"]
[TimeControl "5400+30"]

1. d4 Nf6 2. c4 g6 3. Nc3 Bg7 4. e4 d6 5. h3 O-O 6. Be3 Nbd7 7. g4 e5 8. d5 Nc5 9. Bg2 a5 10. Nge2 Nfd7 11. Ng3 a4 12. Bf3 Nb6 13. Be2 Bd7 14. h4 Qe7 15. Qd2 Nc8 16. h5 Qe8 17. hxg6 fxg6 18. g5 Nb6 19. Kf1 Qc8 20. Kg2 Rf7 21. Rh4 Qd8 22. Rah1 Bh8 23. Qe1 Qe7 24. Qg1 Na6 25. a3 Nc5 26. Qh2 Nb3 27. Rh6 Rg7 28. Nb5 Bxb5 29. cxb5 Nd7 30. Bg4 Nf8 31. Qh4 Nd4 32. Nf5 Nxf5 33. exf5 gxf5 34. Bxf5 Ra5 35. Qh5 Qf7 36. g6 Nxg6 37. Kf1 Nf8 38. Qh3 Rxb5 39. Be6 Nxe6 40. dxe6 Qe7 41. Rxh7 Rxh7 42. Qxh7+ Qxh7 43. Rxh7 Bf6 44. e7 Bxe7 45. Rxe7 c6 46. Re6 Rd5 47. Ke2 Kf7 48. Rh6 b5 49. Rh4 Kf6 50. f3 c5 51. Rh1 c4 52. Rd1 Rxd1 53. Kxd1 Kf5 54. Kd2 Ke6 55. f4 exf4 56. Bxf4 d5 57. Kc3 Kf5 58. Be3 Ke4 59. Bd4 Kf3 60. Bf6 Ke3 61. Kb4 d4 62. Kxb5 c3 63. bxc3 dxc3 64. Bxc3 Ke4 65. Kxa4 Kd5 66. Kb5 Kd6 67. Kb6 Kd7 68. Kb7 Kd6 69. a4 1-0

[Event "Ceske Budejovice Open-A 2019"]
[Site "Ceske Budejovice"]
[Date "2019.07.03"]
[Round "5.20"]
[White "Asatryan, Manvel"]
[Black "Puncochar, Jiri"]
[Result "1/2-1/2"]
[ECO "B22"]
[WhiteElo "1799"]
[BlackElo "2014"]
[Annotator "NA"]
[PlyCount "47"]
[EventDate "2019.07.02"]
[EventCountry "CZE"]
[SourceTitle "playchess.com"]
[Source "ChessBase"]
[SourceQuality "1"]
[TimeControl "5400+30"]

1. e4 {[%emt 0:00:00]} c5 {[%emt 0:00:00]} 2. c3 {[%emt 0:00:00]} d5 {[%emt 0:00:00]} 3. exd5 {[%emt 0:00:00]} Qxd5 {[%emt 0:00:00]} 4. d4 {[%emt 0:00:00]} g6 {[%emt 0:00:22]} 5. Nf3 {[%emt 0:00:04]} Bg7 {[%emt 0:00:17]} 6. Be2 {[%emt 0:00:33]} Nc6 {[%emt 0:04:18]} 7. Be3 {[%emt 0:04:04]} cxd4 {[%emt 0:00:17]} 8. cxd4 {[%emt 0:00:10]} Nh6 {[%emt 0:02:11]} 9. Nc3 {[%emt 0:01:10]} Qa5 {[%emt 0:00:33]} 10. O-O {[%emt 0:00:36]} Nf5 {[%emt 0:04:42]} 11. a3 {[%emt 0:03:37]} O-O {[%emt 0:02:19]} 12. b4 {[%emt 0:02:26]} Qd8 {[%emt 0:00:47]} 13. Rc1 {[%emt 0:01:08]} Ncxd4 {[%emt 0:01:33]} 14. Nxd4 {[%emt 0:07:13]} Nxd4 {[%emt 0:00:12]} 15. Bf3 {[%emt 0:01:41]} Nxf3+ {[%emt 0:01:40]} 16. Qxf3 {[%emt 0:00:02]} Be6 {[%emt 0:44:00]} 17. Qxb7 {[%emt 0:09:30]} Qd7 {[%emt 0:06:23]} 18. Qxd7 {[%emt 0:08:18]} Bxd7 {[%emt 0:00:02]} 19. Bc5 {[%emt 0:01:39]} Bxc3 {[%emt 0:05:53]} 20. Rxc3 {[%emt 0:02:26]} Rfc8 {[%emt 0:00:11]} 21. Rfc1 {[%emt 0:05:29]} e6 {[%emt 0:01:14]} 22. Be3 {[%emt 0:04:15]} Rxc3 {[%emt 0:01:25]} 23. Rxc3 {[%emt 0:00:01]} a6 {[%emt 0:01:29]} 24. h3 {[%emt 0:00:37]} 1/2-1/2